Workbook

Sheet 1. Info
AB1: Alectra Utilities Corporation - Enersource Hydro
AB2: Alectra Utilities Corporation - Horizon Utilities
AB3: Alectra Utilities Corporation - Hydro One Brampton
AB4: Alectra Utilities Corporation - PowerStream Inc.
AB5: Algoma Power Inc.
AB6: Atikokan Hydro Inc.
AB7: Attawapiskat Power Corp.
AB8: Bluewater Power Distribution Corporation
AB9: Brantford Power Inc.
AB10: Burlington Hydro Inc.
AB11: Canadian Niagara Power Inc.
AB12: Centre Wellington Hydro Ltd.
A13: Drop-down lists are shaded blue; Input cells are shaded green. | AB13: Chapleau Public Utilities Corporation
AB14: COLLUS PowerStream Corporation
C15: Utility Name | D15: Energy + Inc. | AB15: Cooperative Hydro Embrun Inc.
AB16: E.L.K. Energy Inc.
C17: Service Territory | AB17: Energy + Inc.
AB18: Entegrus Powerlines Inc.
C19: Assigned EB Number | D19: EB-2018-0028 | AB19: ENWIN Utilities Ltd.
AB20: Erie Thames Powerlines Corporation
C21: Name and Title | D21: Sarah Hughes, Chief Financial Officer, Finance | AB21: Espanola Regional Hydro Distribution Corporation
AB22: Essex Powerlines Corporation
C23: Phone Number | D23: 519-621-8405 ext 2638 | AB23: Festival Hydro Inc.
AB24: Fort Albany Power Corporation
C25: Email Address | D25: shughes@energyplus.ca | AB25: Fort Frances Power Corporation
AB26: Greater Sudbury Hydro Inc.
C27: Date | AB27: Grimsby Power Inc.
AB28: Guelph Hydro Electric Systems Inc.
C29: Last COS Re-based Year | D29: 2011 | AB29: Halton Hills Hydro Inc.
AB30: Hearst Power Distribution Company Limited
AB31: Hydro 2000 Inc.
AB32: Hydro Hawkesbury Inc.
AB33: Hydro One Networks Inc.
AB34: Hydro One Networks Inc. - Haldimand County Hydro
AB35: Hydro One Networks Inc. - Norfolk Hydro
AB36: Hydro One Networks Inc. - Woodstock Hydro
AB37: Hydro One Remote Communities Inc.
AB38: Hydro Ottawa Limited
AB39: Innpower Corporation
AB40: Kashechewan Power Corporation
AB41: Kenora Hydro Electric Corporation Ltd.
AB42: Kingston Hydro Corporation
AB43: Kitchener-Wilmot Hydro Inc.
AB44: Lakefront Utilities Inc.
AB45: Lakeland Power Distribution Ltd.
AB46: London Hydro Inc.
AB47: Midland Power Utility Corporation
AB48: Milton Hydro Distribution inc.
AB49: Newmarket - Tay Power Distribution Ltd.
AB50: Niagara Peninsula Energy Inc.
AB51: Niagara-on-the-Lake Hydro Inc.
AB52: North Bay Hydro Distribution Limited
AB53: Northern Ontario Wires Inc.
AB54: Oakville Hydro Electricity Distribution Inc.
AB55: Orangeville Hydro Limited
AB56: Orillia Power Distribution Corporation
AB57: Oshawa PUC Networks Inc.
AB58: Ottawa River Power Corporation
AB59: Peterborough Distribution Incorporated
AB60: PUC Distribution Inc.
AB61: Renfrew Hydro Inc.
AB62: Rideau St. Lawrence Distribution Inc.
AB63: Sioux Lookout Hydro Inc.
AB64: St. Thomas Energy Inc.
AB65: Thunder Bay Hydro Electricity Distribution Inc.
AB66: Tillsonburg Hydro Inc.
AB67: Toronto Hydro-Electric System Limited
AB68: Veridian Connections Inc.
AB69: Wasaga Distribution Inc.
AB70: Waterloo North Hydro Inc.
AB71: Welland Hydro Electric System Corp.
AB72: Wellington North Power Inc.
AB73: West Coast Huron Energy Inc.
AB74: Westario Power Inc.
AB75: Whitby Hydro Electric Corporation

Sheet 2. Table of Contents
D20: 1. Info | I20: 6. Historical Wholesale
D22: 2. Table of Contents | I22: 7. Current Wholesale
D24: 3. Rate Classes | I24: 8. Forecast Wholesale
D26: 4. RRR Data | I26: 9. RTSR Rates to Forecast
D28: 5. UTRs and Sub-Transmission

Sheet 3. Rate Classes
C13: 1. Select the appropriate rate classes that appear on your most recent Board-Approved Tariff of Rates and Charges. 2. Enter the RTS Network and Connection Rate as it appears on the Tariff of Rates and Charges
C15: Rate Class | E15: Unit | G15: RTSR-Network | I15: RTSR-Connection
C17: Residential | E17: kWh | G17: 0.005939923871 | I17: 0.0044 | L17: =IF(OR(ISBLANK(C17), ISERROR(FIND("Choose", C17))=FALSE), 0, 1) -> 1 | M17: ="C" & ROW(C17) -> C17 | N17: =IF(OR(C17="General Service Intermediate Rate Class 1,000 To 4,999 kW (formerly General Service > 50 kW Customers)", C17="General Service Intermediate Rate Class 1,000 To 4,999 kW (formerly Large Use Customers)"), "x", "") ->  | W17: Choose Rate Class
C18: General Service Less Than 50 kW | E18: kWh | G18: 0.0052 | I18: 0.0041 | L18: 1 | M18: C18 | N18: =IF(OR(C18="General Service Intermediate Rate Class 1,000 To 4,999 kW (formerly General Service > 50 kW Customers)", C18="General Service Intermediate Rate Class 1,000 To 4,999 kW (formerly Large Use Customers)"), "x", "") ->  | W18: Residential
C19: General Service 50 to 999 kW | E19: kW | G19: 3.3563 | I19: 2.4847 | L19: 1 | M19: C19 | W19: Residential Regular
C20: General Service 1,000 to 4,999 kW | E20: kW | G20: 2.5491 | I20: 1.9499 | L20: 1 | M20: C20 | W20: Residential Urban
C21: Large Use | E21: kW | G21: 2.4156 | I21: 1.9849 | L21: 1 | M21: C21 | W21: Residential Urban Year-Round
C22: Street Lighting | E22: kW | G22: 1.6867 | I22: 1.2486 | L22: 1 | M22: C22 | W22: Residential Suburban
C23: Unmetered Scattered Load | E23: kWh | G23: 0.0052 | I23: 0.0041 | L23: 1 | M23: C23 | W23: Residential Suburban Seasonal
C24: Embedded Distributor | E24: kW | G24: 2.4156 | I24: 1.9849 | L24: 1 | M24: C24 | W24: Residential Suburban Year Round
C25: Embedded Distributor | E25: kW | G25: =G24 -> 2.4156 | I25: =I24 -> 1.9849 | L25: 1 | M25: C25 | W25: Residential - Time of Use
C26: Choose Rate Class | L26: 0 | M26: C26 | W26: Residential - Hensall
C27: Choose Rate Class | L27: 0 | M27: C27 | W27: Residential – High Density [R1]
C28: Choose Rate Class | L28: 0 | M28: C28 | W28: Residential – Normal Density [R2]
C29: Choose Rate Class | L29: 0 | M29: C29 | W29: Seasonal Residential – High Density [R3]
C30: Choose Rate Class | L30: 0 | M30: C30 | W30: Seasonal Residential – Normal Density [R4]
C31: Choose Rate Class | L31: 0 | M31: C31 | W31: Residential – Urban [UR]
C32: Choose Rate Class | L32: 0 | M32: C32 | W32: General Service Less Than 50 kW
C33: Choose Rate Class | L33: 0 | M33: C33 | W33: General Service Less Than 50 kW – Single Phase energy-billed [G1]
C34: Choose Rate Class | L34: 0 | M34: C34 | W34: General Service Less Than 50 kW – Three Phase energy-billed [G3]
C35: Choose Rate Class | L35: 0 | M35: C35 | W35: General Service Less Than 50 kW – Transmission Class energy-billed [T]
C36: Choose Rate Class | L36: 0 | M36: C36 | W36: General Service Less Than 50 kW – Urban energy-billed [UG]
C37: Choose Rate Class | L37: 0 | M37: C37 | W37: Westport Sewage Treatment Plant
C38: Choose Rate Class | L38: 0 | M38: C38 | W38: Small Commercial and USL - per meter
N39: =COUNTIF(N17:N38, "x") -> 0 | W39: Small Commercial and USL - per connection
W40: Farms – Single Phase energy-billed [F1]
W41: General Service 50 to 499 kW
W42: General Service 50 to 699 kW
W43: General Service 50 to 999 kW
W44: General Service 50 to 999 kW - Interval Metered
W45: General Service 50 to 1,000 kW
W46: General Service 50 to 1,000 kW - Interval Meters
W47: General Service 50 to 1,000 kW - Non Interval Meters
W48: General Service 50 to 1,499 kW
W49: General Service 50 to 1,499 kW - Interval Metered
W50: General Service 50 to 2,499 kW
W51: General Service 50 to 2,999 kW
W52: General Service 50 to 2,999 kW - Time of Use
W53: General Service 50 to 4,999 kW
W54: General Service 50 to 4,999 kW – Interval Metered
W55: General Service 50 to 4,999 kW - Time of Use
W56: General Service 50 to 4,999 kW (CoGeneration)
W57: General Service 50 to 4,999 kW (formerly Time of Use)
W58: General Service 500 to 4,999 kW
W59: General Service 700 to 4,999 kW
W60: General Service 1,000 to 2,999 kW
W61: General Service 1,000 to 4,999 kW
W62: General Service 1,000 to 4,999 kW - Interval Meters
W63: General Service 1,000 To 4,999 kW (co-generation)
W64: General Service Greater Than 1,000 kW
W65: General Service Intermediate Rate Class 1,000 To 4,999 kW (formerly Large Use Customers)
W66: General Service Intermediate Rate Class 1,000 To 4,999 kW (formerly General Service > 50 kW Customers)
W67: General Service 1,500 to 4,999 kW
W68: General Service Equal To Or Greater Than 1,500 kW
W69: General Service Equal To Or Greater Than 1,500 kW - Interval Metered
W70: General Service Intermediate 1,000 To 4,999 kW
W71: General Service 2,500 to 4,999 kW
W72: General Service 3,000 to 4,999 kW
W73: General Service 3,000 to 4,999 kW - Interval Metered
W74: General Service 3,000 to 4,999 kW - Intermediate Use
W75: General Service 3,000 to 4,999 kW - Time of Use
W76: Intermediate With Self Generation
W77: General Service - Commercial
W78: General Service - Institutional
W79: Farms – Three Phase energy-billed [F3]
W80: Large Use
W81: Large Use - Regular
W82: Large Use > 5000 kW
W83: Large Use - 3TS
W84: Large Use - Ford Annex
W85: Unmetered Scattered Load
W86: Sentinel Lighting
W87: Street Lighting
W88: Embedded Distributor
W89: Low Voltage Wheeling Charge Rate
W90: Stand-By
W91: Standby Power
W92: Standby Power – INTERIM APPROVAL
W93: Standby Power - APPROVED ON AN INTERIM BASIS
W94: Standby - General Service 50 - 1,000 kW
W95: Standby Power General Service 50 to 1,499 kW
W96: Standby - General Service 1,000 - 5,000 kW
W97: Standby Power General Service 1,500 to 4,999 kW
W98: Standby - Large Use
W99: Standby Power General Service Large Use
W100: Standby Distribution Service

Sheet 4. RRR Data
B15: Rate Class | C15: Rate Description | D15: Unit | E15: Rate | F15: Non-Loss Adjusted Metered kWh | G15: Non-Loss Adjusted Metered kW | H15: Applicable Loss Factor eg: (1.0325) | I15: Loss Adjusted Billed kWh
B17: Residential | C17: RTSR - Network | D17: kWh | E17: 0.005939923871 | F17: 389779994.6 | H17: 1.03068465 | I17: =F17*H17 -> 401740257.3
B18: Residential | C18: RTSR - Connection | D18: kWh | E18: 0.0044 | F18: 389779994.6 | H18: 1.03068465 | I18: =F18*H18 -> 401740257.3
B19: General Service Less Than 50 kW | C19: RTSR - Network | D19: kWh | E19: 0.0052 | F19: 152724958.4 | H19: 1.03068465 | I19: =F19*H19 -> 157411270.3
B20: General Service Less Than 50 kW | C20: RTSR - Connection | D20: kWh | E20: 0.0041 | F20: 152724958.4 | H20: 1.03068465 | I20: =F20*H20 -> 157411270.3
B21: General Service 50 to 999 kW | C21: RTSR - Network | D21: kW | E21: 3.3563 | F21: 424939740.2 | G21: 1358720.2
B22: General Service 50 to 999 kW | C22: RTSR - Connection | D22: kW | E22: 2.4847 | F22: 424939740.2 | G22: 1358720.2
B23: General Service 1,000 to 4,999 kW | C23: RTSR - Network | D23: kW | E23: 2.5491 | F23: 180226349.5 | G23: 473291.0208
B24: General Service 1,000 to 4,999 kW | C24: RTSR - Connection | D24: kW | E24: 1.9499 | F24: 180226349.5 | G24: 473291.0208
B25: Large Use | C25: RTSR - Network | D25: kW | E25: 2.4156 | F25: 145141006.5 | G25: 361276.3107
B26: Large Use | C26: RTSR - Connection | D26: kW | E26: 1.9849 | F26: 145141006.5 | G26: 361276.3107
B27: Street Lighting | C27: RTSR - Network | D27: kW | E27: 1.6867 | F27: 3458011.971 | G27: 9896.266398
B28: Street Lighting | C28: RTSR - Connection | D28: kW | E28: 1.2486 | F28: 3458011.971 | G28: 9896.266398
B29: Unmetered Scattered Load | C29: RTSR - Network | D29: kWh | E29: 0.0052 | F29: 2059804.759 | H29: 1.03068465 | I29: =F29*H29 -> 2123009.147
B30: Unmetered Scattered Load | C30: RTSR - Connection | D30: kWh | E30: 0.0041 | F30: 2059804.759 | H30: 1.03068465 | I30: =F30*H30 -> 2123009.147
B31: Embedded Distributor | C31: RTSR - Network | D31: kW | E31: 2.4156 | F31: 58104381.49 | G31: 114656.8844
B32: Embedded Distributor | C32: RTSR - Connection | D32: kW | E32: 1.9849 | F32: 58104381.49 | G32: 114656.8844
B33: Embedded Distributor | C33: RTSR - Network | D33: kW | E33: 2.4156 | F33: 12605162.22 | G33: 24387.43564
B34: Embedded Distributor | C34: RTSR - Connection | D34: kW | E34: 1.9849 | F34: 12605162.22 | G34: 24387.43564

Sheet 5. UTRs and Sub-Transmission
B18: Uniform Transmission Rates | C18: Unit | E18: 2017 | H18: 2018 | J18: 2019
B20: Rate Description | E20: Rate | H20: Rate | J20: Rate
B22: Network Service Rate | C22: kW | E22: 3.66 | H22: 3.61 | J22: 3.61
B24: Line Connection Service Rate | C24: kW | E24: 0.87 | H24: 0.95 | J24: 0.95
B26: Transformation Connection Service Rate | C26: kW | E26: 2.02 | H26: 2.34 | J26: 2.34
B29: Hydro One Sub-Transmission Rates | C29: Unit | E29: 2017 | H29: 2018 | J29: 2019
B34: Rate Description | E34: Rate | H34: Rate | J34: Rate
B36: Network Service Rate | C36: kW | E36: 3.1942 | H36: 3.1942 | J36: 3.1942
B38: Line Connection Service Rate | C38: kW | E38: 0.771 | H38: 0.771 | J38: 0.771
E39: 1.7493
B40: Transformation Connection Service Rate | C40: kW | H40: 1.7493 | J40: 1.7493
B42: Both Line and Transformation Connection Service Rate | C42: kW | E42: =E39+E38 -> 2.5203 | H42: =SUM(H40,H38) -> 2.5203 | J42: =SUM(J40,J38) -> 2.5203
B45: If needed, add extra host here. (I) | C45: Unit | E45: 2017 | H45: 2018 | J45: 2019
B49: Rate Description | E49: Rate | H49: Rate | J49: Rate
B51: Network Service Rate | C51: kW
B53: Line Connection Service Rate | C53: kW
B55: Transformation Connection Service Rate | C55: kW
B57: Both Line and Transformation Connection Service Rate | C57: kW | E57: =SUM(E53,E55) -> 0 | H57: =SUM(H53,H55) -> 0 | J57: =J55+J53 -> 0
B60: If needed, add extra host here. (II) | C60: Unit | E60: Effective January 1, 2017 | H60: Effective January 1, 2018 | J60: Effective January 1, 2019
B64: Rate Description | E64: Rate | H64: Rate | J64: Rate
B66: Network Service Rate | C66: kW
B68: Line Connection Service Rate | C68: kW
B70: Transformation Connection Service Rate | C70: kW
B72: Both Line and Transformation Connection Service Rate | C72: kW | E72: =SUM(E68,E70) -> 0 | H72: =SUM(H68,H70) -> 0 | J72: =J70+J68 -> 0
E74: Historical 2017 | H74: Current 2018 | J74: Forecast 2019
B75: Low Voltage Switchgear Credit (if applicable, enter as a negative value) | C75: $

Sheet 6. Historical Wholesale
A3: The purpose of this table is to re-align the current RTS Connection Rates to recover current wholesale connection costs.
D4: Current RTSR-Connection | J4: Adjusted RTSR-Connection
A5: The purpose of this table is to update the re-aligned RTS Network Rates to recover future wholesale network costs.
D6: Adjusted RTSR-Network | J6: Proposed RTSR-Network
A10: The purpose of this table is to re-align the current RTS Connection Rates to recover current wholesale connection costs.
D11: Adjusted RTSR-Connection
A12: The purpose of this table is to update the re-aligned RTS Network Rates to recover future wholesale network costs.
A14: The purpose of this table is to update the re-aligned RTS Connection Rates to recover future wholesale connection costs.
D15: Adjusted RTSR-Connection | J15: Proposed RTSR-Connection
A16: The purpose of this table is to re-align the current RTS Connection Rates to recover current wholesale connection costs.

Sheet 7. Current Wholesale
B13: The purpose of this sheet is to calculate the expected billing when current 2018 Uniform Transmission Rates are applied against historical 2017 transmission units.
B20: IESO | D20: Network | H20: Line Connection | L20: Transformation Connection | P20: Total Line
B22: Month | D22: Units Billed | E22: Rate | F22: Amount | H22: Units Billed | I22: Rate | J22: Amount | L22: Units Billed | M22: Rate | N22: Amount | P22: Amount
B24: January | D24: ='6. Historical Wholesale'!#REF! ->  | E24: ='5. UTRs and Sub-Transmission'!H22 -> 3.61 | F24: =D24*E24 ->  | H24: ='6. Historical Wholesale'!#REF! ->  | I24: ='5. UTRs and Sub-Transmission'!H24 -> 0.95 | J24: =H24*I24 ->  | L24: ='6. Historical Wholesale'!#REF! ->  | M24: ='5. UTRs and Sub-Transmission'!H26 -> 2.34 | N24: =L24*M24 ->  | P24: =J24+N24 -> 
B25: February | D25: ='6. Historical Wholesale'!#REF! ->  | E25: =E24 -> 3.61 | F25: =D25*E25 ->  | H25: ='6. Historical Wholesale'!#REF! ->  | I25: =I24 -> 0.95 | J25: =H25*I25 ->  | L25: ='6. Historical Wholesale'!#REF! ->  | M25: =M24 -> 2.34 | N25: =L25*M25 -> 
B26: March | D26: ='6. Historical Wholesale'!#REF! ->  | E26: =E25 -> 3.61 | H26: ='6. Historical Wholesale'!#REF! ->  | I26: =I25 -> 0.95 | L26: ='6. Historical Wholesale'!#REF! ->  | M26: =M25 -> 2.34
B27: April | D27: ='6. Historical Wholesale'!#REF! ->  | E27: 3.61 | H27: ='6. Historical Wholesale'!#REF! ->  | I27: 0.95 | L27: ='6. Historical Wholesale'!#REF! ->  | M27: 2.34
B28: May | D28: ='6. Historical Wholesale'!#REF! ->  | E28: 3.61 | H28: ='6. Historical Wholesale'!#REF! ->  | I28: 0.95 | L28: ='6. Historical Wholesale'!#REF! ->  | M28: 2.34
B29: June | D29: ='6. Historical Wholesale'!#REF! ->  | E29: 3.61 | H29: ='6. Historical Wholesale'!#REF! ->  | I29: 0.95 | L29: ='6. Historical Wholesale'!#REF! ->  | M29: 2.34
B30: July | D30: ='6. Historical Wholesale'!#REF! ->  | E30: 3.61 | H30: ='6. Historical Wholesale'!#REF! ->  | I30: 0.95 | L30: ='6. Historical Wholesale'!#REF! ->  | M30: 2.34
B31: August | D31: ='6. Historical Wholesale'!#REF! ->  | E31: 3.61 | H31: ='6. Historical Wholesale'!#REF! ->  | I31: 0.95 | L31: ='6. Historical Wholesale'!#REF! ->  | M31: 2.34
B32: September | D32: ='6. Historical Wholesale'!#REF! ->  | E32: 3.61 | H32: ='6. Historical Wholesale'!#REF! ->  | I32: 0.95 | L32: ='6. Historical Wholesale'!#REF! ->  | M32: 2.34
B33: October | D33: ='6. Historical Wholesale'!#REF! ->  | E33: 3.61 | H33: ='6. Historical Wholesale'!#REF! ->  | I33: 0.95 | L33: ='6. Historical Wholesale'!#REF! ->  | M33: 2.34
B34: November | D34: ='6. Historical Wholesale'!#REF! ->  | E34: 3.61 | H34: ='6. Historical Wholesale'!#REF! ->  | I34: 0.95 | L34: ='6. Historical Wholesale'!#REF! ->  | M34: 2.34
B35: December | D35: ='6. Historical Wholesale'!#REF! ->  | E35: 3.61 | H35: ='6. Historical Wholesale'!#REF! ->  | I35: 0.95 | L35: ='6. Historical Wholesale'!#REF! ->  | M35: 2.34
B37: Total | D37: =SUM(D24:D35) ->  | E37: =IF(D37<>0,F37/D37,0) ->  | F37: =SUM(F24:F35) ->  | H37: =SUM(H24:H35) ->  | I37: =IF(H37<>0,J37/H37,0) ->  | J37: =SUM(J24:J35) ->  | L37: =SUM(L24:L35) ->  | M37: =IF(L37<>0,N37/L37,0) ->  | N37: =SUM(N24:N35) ->  | P37: =SUM(P24:P35) -> 
B39: Hydro One | D39: Network | H39: Line Connection | L39: Transformation Connection | P39: Total Line
B41: Month | D41: Units Billed | E41: Rate | F41: Amount | H41: Units Billed | I41: Rate | J41: Amount | L41: Units Billed | M41: Rate | N41: Amount | P41: Amount
B43: January | D43: ='6. Historical Wholesale'!#REF! ->  | E43: ='5. UTRs and Sub-Transmission'!H36 -> 3.1942 | F43: =D43*E43 ->  | H43: ='6. Historical Wholesale'!#REF! ->  | I43: ='5. UTRs and Sub-Transmission'!H38 -> 0.771 | J43: =H43*I43 ->  | L43: ='6. Historical Wholesale'!#REF! ->  | M43: ='5. UTRs and Sub-Transmission'!H40 -> 1.7493 | N43: =L43*M43 ->  | P43: =J43+N43 -> 
B44: February | D44: ='6. Historical Wholesale'!#REF! ->  | E44: =E43 -> 3.1942 | F44: =D44*E44 ->  | H44: ='6. Historical Wholesale'!#REF! ->  | I44: =I43 -> 0.771 | J44: =H44*I44 ->  | L44: ='6. Historical Wholesale'!#REF! ->  | M44: =M43 -> 1.7493 | N44: =L44*M44 -> 
B45: March | D45: ='6. Historical Wholesale'!#REF! ->  | E45: 3.1942 | H45: ='6. Historical Wholesale'!#REF! ->  | I45: 0.771 | L45: ='6. Historical Wholesale'!#REF! ->  | M45: =M44 -> 1.7493
B46: April | D46: ='6. Historical Wholesale'!#REF! ->  | E46: 3.1942 | H46: ='6. Historical Wholesale'!#REF! ->  | I46: 0.771 | L46: ='6. Historical Wholesale'!#REF! ->  | M46: =M45 -> 1.7493
B47: May | D47: ='6. Historical Wholesale'!#REF! ->  | E47: 3.1942 | H47: ='6. Historical Wholesale'!#REF! ->  | I47: 0.771 | L47: ='6. Historical Wholesale'!#REF! ->  | M47: 1.7493
B48: June | D48: ='6. Historical Wholesale'!#REF! ->  | E48: 3.1942 | H48: ='6. Historical Wholesale'!#REF! ->  | I48: 0.771 | L48: ='6. Historical Wholesale'!#REF! ->  | M48: 1.7493
B49: July | D49: ='6. Historical Wholesale'!#REF! ->  | E49: 3.1942 | H49: ='6. Historical Wholesale'!#REF! ->  | I49: 0.771 | L49: ='6. Historical Wholesale'!#REF! ->  | M49: 1.7493
B50: August | D50: ='6. Historical Wholesale'!#REF! ->  | E50: 3.1942 | H50: ='6. Historical Wholesale'!#REF! ->  | I50: 0.771 | L50: ='6. Historical Wholesale'!#REF! ->  | M50: 1.7493
B51: September | D51: ='6. Historical Wholesale'!#REF! ->  | E51: 3.1942 | H51: ='6. Historical Wholesale'!#REF! ->  | I51: 0.771 | L51: ='6. Historical Wholesale'!#REF! ->  | M51: 1.7493
B52: October | D52: ='6. Historical Wholesale'!#REF! ->  | E52: 3.1942 | H52: ='6. Historical Wholesale'!#REF! ->  | I52: 0.771 | L52: ='6. Historical Wholesale'!#REF! ->  | M52: 1.7493
B53: November | D53: ='6. Historical Wholesale'!#REF! ->  | E53: 3.1942 | H53: ='6. Historical Wholesale'!#REF! ->  | I53: 0.771 | L53: ='6. Historical Wholesale'!#REF! ->  | M53: 1.7493
B54: December | D54: ='6. Historical Wholesale'!#REF! ->  | E54: 3.1942 | H54: ='6. Historical Wholesale'!#REF! ->  | I54: 0.771 | L54: ='6. Historical Wholesale'!#REF! ->  | M54: 1.7493
B56: Total | D56: =SUM(D43:D54) ->  | E56: =IF(D56<>0,F56/D56,0) ->  | F56: =SUM(F43:F54) ->  | H56: =SUM(H43:H54) ->  | I56: =IF(H56<>0,J56/H56,0) ->  | J56: =SUM(J43:J54) ->  | L56: =SUM(L43:L54) ->  | M56: =IF(L56<>0,N56/L56,0) ->  | N56: =SUM(N43:N54) ->  | P56: =SUM(P43:P54) -> 
B58: ='6. Historical Wholesale'!#REF! ->  | D58: Network | H58: Line Connection | L58: Transformation Connection | P58: Total Line
B60: Month | D60: Units Billed | E60: Rate | F60: Amount | H60: Units Billed | I60: Rate | J60: Amount | L60: Units Billed | M60: Rate | N60: Amount | P60: Amount
B62: January | D62: ='6. Historical Wholesale'!#REF! ->  | E62: ='5. UTRs and Sub-Transmission'!H51 -> 0 | F62: =D62*E62 ->  | H62: ='6. Historical Wholesale'!#REF! ->  | I62: ='5. UTRs and Sub-Transmission'!H53 -> 0 | J62: =H62*I62 ->  | L62: ='6. Historical Wholesale'!#REF! ->  | M62: ='5. UTRs and Sub-Transmission'!H55 -> 0 | N62: =L62*M62 ->  | P62: =J62+N62 -> 
B63: February | D63: ='6. Historical Wholesale'!#REF! ->  | E63: =E62 -> 0 | F63: =D63*E63 ->  | H63: ='6. Historical Wholesale'!#REF! ->  | I63: =I62 -> 0 | J63: =H63*I63 ->  | L63: ='6. Historical Wholesale'!#REF! ->  | M63: =M62 -> 0 | N63: =L63*M63 -> 
B64: March | D64: ='6. Historical Wholesale'!#REF! ->  | E64: =E63 -> 0 | H64: ='6. Historical Wholesale'!#REF! ->  | I64: =I63 -> 0 | L64: ='6. Historical Wholesale'!#REF! ->  | M64: =M63 -> 0
B65: April | D65: ='6. Historical Wholesale'!#REF! ->  | E65: 0 | H65: ='6. Historical Wholesale'!#REF! ->  | I65: 0 | L65: ='6. Historical Wholesale'!#REF! ->  | M65: =M64 -> 0
B66: May | D66: ='6. Historical Wholesale'!#REF! ->  | E66: 0 | H66: ='6. Historical Wholesale'!#REF! ->  | I66: 0 | L66: ='6. Historical Wholesale'!#REF! ->  | M66: 0
B67: June | D67: ='6. Historical Wholesale'!#REF! ->  | E67: 0 | H67: ='6. Historical Wholesale'!#REF! ->  | I67: 0 | L67: ='6. Historical Wholesale'!#REF! ->  | M67: 0
B68: July | D68: ='6. Historical Wholesale'!#REF! ->  | E68: 0 | H68: ='6. Historical Wholesale'!#REF! ->  | I68: 0 | L68: ='6. Historical Wholesale'!#REF! ->  | M68: 0
B69: August | D69: ='6. Historical Wholesale'!#REF! ->  | E69: 0 | H69: ='6. Historical Wholesale'!#REF! ->  | I69: 0 | L69: ='6. Historical Wholesale'!#REF! ->  | M69: 0
B70: September | D70: ='6. Historical Wholesale'!#REF! ->  | E70: 0 | H70: ='6. Historical Wholesale'!#REF! ->  | I70: 0 | L70: ='6. Historical Wholesale'!#REF! ->  | M70: 0
B71: October | D71: ='6. Historical Wholesale'!#REF! ->  | E71: 0 | H71: ='6. Historical Wholesale'!#REF! ->  | I71: 0 | L71: ='6. Historical Wholesale'!#REF! ->  | M71: 0
B72: November | D72: ='6. Historical Wholesale'!#REF! ->  | E72: 0 | H72: ='6. Historical Wholesale'!#REF! ->  | I72: 0 | L72: ='6. Historical Wholesale'!#REF! ->  | M72: 0
B73: December | D73: ='6. Historical Wholesale'!#REF! ->  | E73: 0 | H73: ='6. Historical Wholesale'!#REF! ->  | I73: 0 | L73: ='6. Historical Wholesale'!#REF! ->  | M73: 0
B75: Total | D75: =SUM(D62:D73) ->  | E75: =IF(D75<>0,F75/D75,0) ->  | F75: =SUM(F62:F73) ->  | H75: =SUM(H62:H73) ->  | I75: =IF(H75<>0,J75/H75,0) ->  | J75: =SUM(J62:J73) ->  | L75: =SUM(L62:L73) ->  | M75: =IF(L75<>0,N75/L75,0) ->  | N75: =SUM(N62:N73) ->  | P75: =SUM(P62:P73) -> 
B77: ='6. Historical Wholesale'!#REF! ->  | D77: Network | H77: Line Connection | L77: Transformation Connection | P77: Total Line
B79: Month | D79: Units Billed | E79: Rate | F79: Amount | H79: Units Billed | I79: Rate | J79: Amount | L79: Units Billed | M79: Rate | N79: Amount | P79: Amount
B81: January | D81: ='6. Historical Wholesale'!#REF! ->  | E81: ='5. UTRs and Sub-Transmission'!H66 -> 0 | F81: =D81*E81 ->  | H81: ='6. Historical Wholesale'!#REF! ->  | I81: ='5. UTRs and Sub-Transmission'!H68 -> 0 | J81: =H81*I81 ->  | L81: ='6. Historical Wholesale'!#REF! ->  | M81: ='5. UTRs and Sub-Transmission'!H70 -> 0 | N81: =L81*M81 ->  | P81: =J81+N81 -> 
B82: February | D82: ='6. Historical Wholesale'!#REF! ->  | E82: =E81 -> 0 | F82: =D82*E82 ->  | H82: ='6. Historical Wholesale'!#REF! ->  | I82: =I81 -> 0 | J82: =H82*I82 ->  | L82: ='6. Historical Wholesale'!#REF! ->  | M82: =M81 -> 0 | N82: =L82*M82 -> 
B83: March | D83: ='6. Historical Wholesale'!#REF! ->  | E83: =E82 -> 0 | H83: ='6. Historical Wholesale'!#REF! ->  | I83: =I82 -> 0 | L83: ='6. Historical Wholesale'!#REF! ->  | M83: =M82 -> 0
B84: April | D84: ='6. Historical Wholesale'!#REF! ->  | E84: 0 | H84: ='6. Historical Wholesale'!#REF! ->  | I84: 0 | L84: ='6. Historical Wholesale'!#REF! ->  | M84: =M83 -> 0
B85: May | D85: ='6. Historical Wholesale'!#REF! ->  | E85: 0 | H85: ='6. Historical Wholesale'!#REF! ->  | I85: 0 | L85: ='6. Historical Wholesale'!#REF! ->  | M85: 0
B86: June | D86: ='6. Historical Wholesale'!#REF! ->  | E86: 0 | H86: ='6. Historical Wholesale'!#REF! ->  | I86: 0 | L86: ='6. Historical Wholesale'!#REF! ->  | M86: 0
B87: July | D87: ='6. Historical Wholesale'!#REF! ->  | E87: 0 | H87: ='6. Historical Wholesale'!#REF! ->  | I87: 0 | L87: ='6. Historical Wholesale'!#REF! ->  | M87: 0
B88: August | D88: ='6. Historical Wholesale'!#REF! ->  | E88: 0 | H88: ='6. Historical Wholesale'!#REF! ->  | I88: 0 | L88: ='6. Historical Wholesale'!#REF! ->  | M88: 0
B89: September | D89: ='6. Historical Wholesale'!#REF! ->  | E89: 0 | H89: ='6. Historical Wholesale'!#REF! ->  | I89: 0 | L89: ='6. Historical Wholesale'!#REF! ->  | M89: 0
B90: October | D90: ='6. Historical Wholesale'!#REF! ->  | E90: 0 | H90: ='6. Historical Wholesale'!#REF! ->  | I90: 0 | L90: ='6. Historical Wholesale'!#REF! ->  | M90: 0
B91: November | D91: ='6. Historical Wholesale'!#REF! ->  | E91: 0 | H91: ='6. Historical Wholesale'!#REF! ->  | I91: 0 | L91: ='6. Historical Wholesale'!#REF! ->  | M91: 0
B92: December | D92: ='6. Historical Wholesale'!#REF! ->  | E92: 0 | H92: ='6. Historical Wholesale'!#REF! ->  | I92: 0 | L92: ='6. Historical Wholesale'!#REF! ->  | M92: 0
B94: Total | D94: =SUM(D81:D92) ->  | E94: =IF(D94<>0,F94/D94,0) ->  | F94: =SUM(F81:F92) ->  | H94: =SUM(H81:H92) ->  | I94: =IF(H94<>0,J94/H94,0) ->  | J94: =SUM(J81:J92) ->  | L94: =SUM(L81:L92) ->  | M94: =IF(L94<>0,N94/L94,0) ->  | N94: =SUM(N81:N92) ->  | P94: =SUM(P81:P92) -> 
B96: Total | D96: Network | H96: Line Connection | L96: Transformation Connection | P96: Total Line
B98: Month | D98: Units Billed | E98: Rate | F98: Amount | H98: Units Billed | I98: Rate | J98: Amount | L98: Units Billed | M98: Rate | N98: Amount | P98: Amount
B100: January | D100: =D24+D43+D62+D81 ->  | E100: =IF(D100<>0,F100/D100,0) ->  | F100: =F24+F43+F62+F81 ->  | H100: =H24+H43+H62+H81 ->  | I100: =IF(H100<>0,J100/H100,0) ->  | J100: =J24+J43+J62+J81 ->  | L100: =L24+L43+L62+L81 ->  | M100: =IF(L100<>0,N100/L100,0) ->  | N100: =N24+N43+N62+N81 ->  | P100: =J100+N100 -> 
B101: February | D101: =D25+D44+D63+D82 ->  | F101: =F25+F44+F63+F82 ->  | H101: =H25+H44+H63+H82 ->  | J101: =J25+J44+J63+J82 ->  | L101: =L25+L44+L63+L82 ->  | N101: =N25+N44+N63+N82 -> 
B102: March
B103: April
B104: May
B105: June
B106: July
B107: August
B108: September
B109: October
B110: November
B111: December
B113: Total | D113: =SUM(D100:D111) ->  | E113: =IF(D113<>0,F113/D113,0) ->  | F113: =SUM(F100:F111) ->  | H113: =SUM(H100:H111) ->  | I113: =IF(H113<>0,J113/H113,0) ->  | J113: =SUM(J100:J111) ->  | L113: =SUM(L100:L111) ->  | M113: =IF(L113<>0,N113/L113,0) ->  | N113: =SUM(N100:N111) ->  | P113: =SUM(P100:P111) -> 
N115: Low Voltage Switchgear Credit (if applicable) | P115: ='5. UTRs and Sub-Transmission'!H75 -> 0
N117: Total including deduction for Low Voltage Switchgear Credit | P117: =P113+P115 -> 

Sheet 8. Forecast Wholesale
B13: The purpose of this sheet is to calculate the expected billing when forecasted 2019 Uniform Transmission Rates are applied against historical 2017 transmission units.
B20: IESO | D20: Network | H20: Line Connection | L20: Transformation Connection | P20: Total Line
B22: Month | D22: Units Billed | E22: Rate | F22: Amount | H22: Units Billed | I22: Rate | J22: Amount | L22: Units Billed | M22: Rate | N22: Amount | P22: Amount
B24: January | D24: ='6. Historical Wholesale'!#REF! ->  | E24: ='5. UTRs and Sub-Transmission'!J22 -> 3.61 | F24: =D24*E24 ->  | H24: ='6. Historical Wholesale'!#REF! ->  | I24: ='5. UTRs and Sub-Transmission'!J24 -> 0.95 | J24: =H24*I24 ->  | L24: ='6. Historical Wholesale'!#REF! ->  | M24: ='5. UTRs and Sub-Transmission'!J26 -> 2.34 | N24: =L24*M24 ->  | P24: =J24+N24 -> 
B25: February | D25: ='6. Historical Wholesale'!#REF! ->  | E25: =E24 -> 3.61 | H25: ='6. Historical Wholesale'!#REF! ->  | I25: =I24 -> 0.95 | L25: ='6. Historical Wholesale'!#REF! ->  | M25: =M24 -> 2.34
B26: March | D26: ='6. Historical Wholesale'!#REF! ->  | E26: 3.61 | H26: ='6. Historical Wholesale'!#REF! ->  | I26: 0.95 | L26: ='6. Historical Wholesale'!#REF! ->  | M26: 2.34
B27: April | D27: ='6. Historical Wholesale'!#REF! ->  | E27: 3.61 | H27: ='6. Historical Wholesale'!#REF! ->  | I27: 0.95 | L27: ='6. Historical Wholesale'!#REF! ->  | M27: 2.34
B28: May | D28: ='6. Historical Wholesale'!#REF! ->  | E28: 3.61 | H28: ='6. Historical Wholesale'!#REF! ->  | I28: 0.95 | L28: ='6. Historical Wholesale'!#REF! ->  | M28: 2.34
B29: June | D29: ='6. Historical Wholesale'!#REF! ->  | E29: 3.61 | H29: ='6. Historical Wholesale'!#REF! ->  | I29: 0.95 | L29: ='6. Historical Wholesale'!#REF! ->  | M29: 2.34
B30: July | D30: ='6. Historical Wholesale'!#REF! ->  | E30: 3.61 | H30: ='6. Historical Wholesale'!#REF! ->  | I30: 0.95 | L30: ='6. Historical Wholesale'!#REF! ->  | M30: 2.34
B31: August | D31: ='6. Historical Wholesale'!#REF! ->  | E31: 3.61 | H31: ='6. Historical Wholesale'!#REF! ->  | I31: 0.95 | L31: ='6. Historical Wholesale'!#REF! ->  | M31: 2.34
B32: September | D32: ='6. Historical Wholesale'!#REF! ->  | E32: 3.61 | H32: ='6. Historical Wholesale'!#REF! ->  | I32: 0.95 | L32: ='6. Historical Wholesale'!#REF! ->  | M32: 2.34
B33: October | D33: ='6. Historical Wholesale'!#REF! ->  | E33: 3.61 | H33: ='6. Historical Wholesale'!#REF! ->  | I33: 0.95 | L33: ='6. Historical Wholesale'!#REF! ->  | M33: 2.34
B34: November | D34: ='6. Historical Wholesale'!#REF! ->  | E34: 3.61 | H34: ='6. Historical Wholesale'!#REF! ->  | I34: 0.95 | L34: ='6. Historical Wholesale'!#REF! ->  | M34: 2.34
B35: December | D35: ='6. Historical Wholesale'!#REF! ->  | E35: 3.61 | H35: ='6. Historical Wholesale'!#REF! ->  | I35: 0.95 | L35: ='6. Historical Wholesale'!#REF! ->  | M35: 2.34
B37: Total | D37: =SUM(D24:D35) ->  | E37: =IF(D37<>0,F37/D37,0) ->  | F37: =SUM(F24:F35) ->  | H37: =SUM(H24:H35) ->  | I37: =IF(H37<>0,J37/H37,0) ->  | J37: =SUM(J24:J35) ->  | L37: =SUM(L24:L35) ->  | M37: =IF(L37<>0,N37/L37,0) ->  | N37: =SUM(N24:N35) ->  | P37: =SUM(P24:P35) -> 
B39: Hydro One | D39: Network | H39: Line Connection | L39: Transformation Connection | P39: Total Line
B41: Month | D41: Units Billed | E41: Rate | F41: Amount | H41: Units Billed | I41: Rate | J41: Amount | L41: Units Billed | M41: Rate | N41: Amount | P41: Amount
B43: January | D43: ='6. Historical Wholesale'!#REF! ->  | E43: ='5. UTRs and Sub-Transmission'!J36 -> 3.1942 | F43: =D43*E43 ->  | H43: ='6. Historical Wholesale'!#REF! ->  | I43: ='5. UTRs and Sub-Transmission'!J38 -> 0.771 | J43: =H43*I43 ->  | L43: ='6. Historical Wholesale'!#REF! ->  | M43: ='5. UTRs and Sub-Transmission'!J40 -> 1.7493 | N43: =L43*M43 ->  | P43: =J43+N43 -> 
B44: February | D44: ='6. Historical Wholesale'!#REF! ->  | E44: =E43 -> 3.1942 | H44: ='6. Historical Wholesale'!#REF! ->  | I44: =I43 -> 0.771 | L44: ='6. Historical Wholesale'!#REF! ->  | M44: =M43 -> 1.7493
B45: March | D45: ='6. Historical Wholesale'!#REF! ->  | E45: 3.1942 | H45: ='6. Historical Wholesale'!#REF! ->  | I45: 0.771 | L45: ='6. Historical Wholesale'!#REF! ->  | M45: 1.7493
B46: April | D46: ='6. Historical Wholesale'!#REF! ->  | E46: 3.1942 | H46: ='6. Historical Wholesale'!#REF! ->  | I46: 0.771 | L46: ='6. Historical Wholesale'!#REF! ->  | M46: 1.7493
B47: May | D47: ='6. Historical Wholesale'!#REF! ->  | E47: 3.1942 | H47: ='6. Historical Wholesale'!#REF! ->  | I47: 0.771 | L47: ='6. Historical Wholesale'!#REF! ->  | M47: 1.7493
B48: June | D48: ='6. Historical Wholesale'!#REF! ->  | E48: 3.1942 | H48: ='6. Historical Wholesale'!#REF! ->  | I48: 0.771 | L48: ='6. Historical Wholesale'!#REF! ->  | M48: 1.7493
B49: July | D49: ='6. Historical Wholesale'!#REF! ->  | E49: 3.1942 | H49: ='6. Historical Wholesale'!#REF! ->  | I49: 0.771 | L49: ='6. Historical Wholesale'!#REF! ->  | M49: 1.7493
B50: August | D50: ='6. Historical Wholesale'!#REF! ->  | E50: 3.1942 | H50: ='6. Historical Wholesale'!#REF! ->  | I50: 0.771 | L50: ='6. Historical Wholesale'!#REF! ->  | M50: 1.7493
B51: September | D51: ='6. Historical Wholesale'!#REF! ->  | E51: 3.1942 | H51: ='6. Historical Wholesale'!#REF! ->  | I51: 0.771 | L51: ='6. Historical Wholesale'!#REF! ->  | M51: 1.7493
B52: October | D52: ='6. Historical Wholesale'!#REF! ->  | E52: 3.1942 | H52: ='6. Historical Wholesale'!#REF! ->  | I52: 0.771 | L52: ='6. Historical Wholesale'!#REF! ->  | M52: 1.7493
B53: November | D53: ='6. Historical Wholesale'!#REF! ->  | E53: 3.1942 | H53: ='6. Historical Wholesale'!#REF! ->  | I53: 0.771 | L53: ='6. Historical Wholesale'!#REF! ->  | M53: 1.7493
B54: December | D54: ='6. Historical Wholesale'!#REF! ->  | E54: 3.1942 | H54: ='6. Historical Wholesale'!#REF! ->  | I54: 0.771 | L54: ='6. Historical Wholesale'!#REF! ->  | M54: 1.7493
B56: Total | D56: =SUM(D43:D54) ->  | E56: =IF(D56<>0,F56/D56,0) ->  | F56: =SUM(F43:F54) ->  | H56: =SUM(H43:H54) ->  | I56: =IF(H56<>0,J56/H56,0) ->  | J56: =SUM(J43:J54) ->  | L56: =SUM(L43:L54) ->  | M56: =IF(L56<>0,N56/L56,0) ->  | N56: =SUM(N43:N54) ->  | P56: =SUM(P43:P54) -> 
B58: ='6. Historical Wholesale'!#REF! ->  | D58: Network | H58: Line Connection | L58: Transformation Connection | P58: Total Line
B60: Month | D60: Units Billed | E60: Rate | F60: Amount | H60: Units Billed | I60: Rate | J60: Amount | L60: Units Billed | M60: Rate | N60: Amount | P60: Amount
B62: January | D62: ='6. Historical Wholesale'!#REF! ->  | E62: ='5. UTRs and Sub-Transmission'!J51 -> 0 | F62: =D62*E62 ->  | H62: ='6. Historical Wholesale'!#REF! ->  | I62: ='5. UTRs and Sub-Transmission'!J53 -> 0 | J62: =H62*I62 ->  | L62: ='6. Historical Wholesale'!#REF! ->  | M62: ='5. UTRs and Sub-Transmission'!J55 -> 0 | N62: =L62*M62 ->  | P62: =J62+N62 -> 
B63: February | D63: ='6. Historical Wholesale'!#REF! ->  | E63: =E62 -> 0 | H63: ='6. Historical Wholesale'!#REF! ->  | I63: =I62 -> 0 | L63: ='6. Historical Wholesale'!#REF! ->  | M63: =M62 -> 0
B64: March | D64: ='6. Historical Wholesale'!#REF! ->  | E64: 0 | H64: ='6. Historical Wholesale'!#REF! ->  | I64: 0 | L64: ='6. Historical Wholesale'!#REF! ->  | M64: 0
B65: April | D65: ='6. Historical Wholesale'!#REF! ->  | E65: 0 | H65: ='6. Historical Wholesale'!#REF! ->  | I65: 0 | L65: ='6. Historical Wholesale'!#REF! ->  | M65: 0
B66: May | D66: ='6. Historical Wholesale'!#REF! ->  | E66: 0 | H66: ='6. Historical Wholesale'!#REF! ->  | I66: 0 | L66: ='6. Historical Wholesale'!#REF! ->  | M66: 0
B67: June | D67: ='6. Historical Wholesale'!#REF! ->  | E67: 0 | H67: ='6. Historical Wholesale'!#REF! ->  | I67: 0 | L67: ='6. Historical Wholesale'!#REF! ->  | M67: 0
B68: July | D68: ='6. Historical Wholesale'!#REF! ->  | E68: 0 | H68: ='6. Historical Wholesale'!#REF! ->  | I68: 0 | L68: ='6. Historical Wholesale'!#REF! ->  | M68: 0
B69: August | D69: ='6. Historical Wholesale'!#REF! ->  | E69: 0 | H69: ='6. Historical Wholesale'!#REF! ->  | I69: 0 | L69: ='6. Historical Wholesale'!#REF! ->  | M69: 0
B70: September | D70: ='6. Historical Wholesale'!#REF! ->  | E70: 0 | H70: ='6. Historical Wholesale'!#REF! ->  | I70: 0 | L70: ='6. Historical Wholesale'!#REF! ->  | M70: 0
B71: October | D71: ='6. Historical Wholesale'!#REF! ->  | E71: 0 | H71: ='6. Historical Wholesale'!#REF! ->  | I71: 0 | L71: ='6. Historical Wholesale'!#REF! ->  | M71: 0
B72: November | D72: ='6. Historical Wholesale'!#REF! ->  | E72: 0 | H72: ='6. Historical Wholesale'!#REF! ->  | I72: 0 | L72: ='6. Historical Wholesale'!#REF! ->  | M72: 0
B73: December | D73: ='6. Historical Wholesale'!#REF! ->  | E73: 0 | H73: ='6. Historical Wholesale'!#REF! ->  | I73: 0 | L73: ='6. Historical Wholesale'!#REF! ->  | M73: 0
B75: Total | D75: =SUM(D62:D73) ->  | E75: =IF(D75<>0,F75/D75,0) ->  | F75: =SUM(F62:F73) ->  | H75: =SUM(H62:H73) ->  | I75: =IF(H75<>0,J75/H75,0) ->  | J75: =SUM(J62:J73) ->  | L75: =SUM(L62:L73) ->  | M75: =IF(L75<>0,N75/L75,0) ->  | N75: =SUM(N62:N73) ->  | P75: =SUM(P62:P73) -> 
B77: ='6. Historical Wholesale'!#REF! ->  | D77: Network | H77: Line Connection | L77: Transformation Connection | P77: Total Line
B79: Month | D79: Units Billed | E79: Rate | F79: Amount | H79: Units Billed | I79: Rate | J79: Amount | L79: Units Billed | M79: Rate | N79: Amount | P79: Amount
B81: January | D81: ='6. Historical Wholesale'!#REF! ->  | E81: ='5. UTRs and Sub-Transmission'!J66 -> 0 | F81: =D81*E81 ->  | H81: ='6. Historical Wholesale'!#REF! ->  | I81: ='5. UTRs and Sub-Transmission'!J68 -> 0 | J81: =H81*I81 ->  | L81: ='6. Historical Wholesale'!#REF! ->  | M81: ='5. UTRs and Sub-Transmission'!J70 -> 0 | N81: =L81*M81 ->  | P81: =J81+N81 -> 
B82: February | D82: ='6. Historical Wholesale'!#REF! ->  | E82: =E81 -> 0 | H82: ='6. Historical Wholesale'!#REF! ->  | I82: =I81 -> 0 | L82: ='6. Historical Wholesale'!#REF! ->  | M82: =M81 -> 0
B83: March | D83: ='6. Historical Wholesale'!#REF! ->  | E83: 0 | H83: ='6. Historical Wholesale'!#REF! ->  | I83: 0 | L83: ='6. Historical Wholesale'!#REF! ->  | M83: 0
B84: April | D84: ='6. Historical Wholesale'!#REF! ->  | E84: 0 | H84: ='6. Historical Wholesale'!#REF! ->  | I84: 0 | L84: ='6. Historical Wholesale'!#REF! ->  | M84: 0
B85: May | D85: ='6. Historical Wholesale'!#REF! ->  | E85: 0 | H85: ='6. Historical Wholesale'!#REF! ->  | I85: 0 | L85: ='6. Historical Wholesale'!#REF! ->  | M85: 0
B86: June | D86: ='6. Historical Wholesale'!#REF! ->  | E86: 0 | H86: ='6. Historical Wholesale'!#REF! ->  | I86: 0 | L86: ='6. Historical Wholesale'!#REF! ->  | M86: 0
B87: July | D87: ='6. Historical Wholesale'!#REF! ->  | E87: 0 | H87: ='6. Historical Wholesale'!#REF! ->  | I87: 0 | L87: ='6. Historical Wholesale'!#REF! ->  | M87: 0
B88: August | D88: ='6. Historical Wholesale'!#REF! ->  | E88: 0 | H88: ='6. Historical Wholesale'!#REF! ->  | I88: 0 | L88: ='6. Historical Wholesale'!#REF! ->  | M88: 0
B89: September | D89: ='6. Historical Wholesale'!#REF! ->  | E89: 0 | H89: ='6. Historical Wholesale'!#REF! ->  | I89: 0 | L89: ='6. Historical Wholesale'!#REF! ->  | M89: 0
B90: October | D90: ='6. Historical Wholesale'!#REF! ->  | E90: 0 | H90: ='6. Historical Wholesale'!#REF! ->  | I90: 0 | L90: ='6. Historical Wholesale'!#REF! ->  | M90: 0
B91: November | D91: ='6. Historical Wholesale'!#REF! ->  | E91: 0 | H91: ='6. Historical Wholesale'!#REF! ->  | I91: 0 | L91: ='6. Historical Wholesale'!#REF! ->  | M91: 0
B92: December | D92: ='6. Historical Wholesale'!#REF! ->  | E92: 0 | H92: ='6. Historical Wholesale'!#REF! ->  | I92: 0 | L92: ='6. Historical Wholesale'!#REF! ->  | M92: 0
B94: Total | D94: =SUM(D81:D92) ->  | E94: =IF(D94<>0,F94/D94,0) ->  | F94: =SUM(F81:F92) ->  | H94: =SUM(H81:H92) ->  | I94: =IF(H94<>0,J94/H94,0) ->  | J94: =SUM(J81:J92) ->  | L94: =SUM(L81:L92) ->  | M94: =IF(L94<>0,N94/L94,0) ->  | N94: =SUM(N81:N92) ->  | P94: =SUM(P81:P92) -> 
B96: Total | D96: Network | H96: Line Connection | L96: Transformation Connection | P96: Total Line
B98: Month | D98: Units Billed | E98: Rate | F98: Amount | H98: Units Billed | I98: Rate | J98: Amount | L98: Units Billed | M98: Rate | N98: Amount | P98: Amount
B100: January | D100: =D24+D43+D62+D81 ->  | E100: =IF(D100<>0,F100/D100,0) ->  | F100: =F24+F43+F62+F81 ->  | H100: =H24+H43+H62+H81 ->  | I100: =IF(H100<>0,J100/H100,0) ->  | J100: =J24+J43+J62+J81 ->  | L100: =L24+L43+L62+L81 ->  | M100: =IF(L100<>0,N100/L100,0) ->  | N100: =N24+N43+N62+N81 ->  | P100: =J100+N100 -> 
B101: February | D101: =D25+D44+D63+D82 ->  | H101: =H25+H44+H63+H82 ->  | J101: =J25+J44+J63+J82 ->  | L101: =L25+L44+L63+L82 ->  | N101: =N25+N44+N63+N82 -> 
B102: March | H102: =H26+H45+H64+H83 ->  | J102: =J26+J45+J64+J83 ->  | L102: =L26+L45+L64+L83 ->  | N102: =N26+N45+N64+N83 -> 
B103: April | H103: =H27+H46+H65+H84 ->  | J103: =J27+J46+J65+J84 ->  | L103: =L27+L46+L65+L84 ->  | N103: =N27+N46+N65+N84 -> 
B104: May | H104: =H28+H47+H66+H85 ->  | J104: =J28+J47+J66+J85 ->  | L104: =L28+L47+L66+L85 ->  | N104: =N28+N47+N66+N85 -> 
B105: June | H105: =H29+H48+H67+H86 ->  | J105: =J29+J48+J67+J86 ->  | L105: =L29+L48+L67+L86 ->  | N105: =N29+N48+N67+N86 -> 
B106: July | H106: =H30+H49+H68+H87 ->  | J106: =J30+J49+J68+J87 ->  | L106: =L30+L49+L68+L87 ->  | N106: =N30+N49+N68+N87 -> 
B107: August | H107: =H31+H50+H69+H88 ->  | J107: =J31+J50+J69+J88 ->  | L107: =L31+L50+L69+L88 ->  | N107: =N31+N50+N69+N88 -> 
B108: September | H108: =H32+H51+H70+H89 ->  | J108: =J32+J51+J70+J89 ->  | L108: =L32+L51+L70+L89 ->  | N108: =N32+N51+N70+N89 -> 
B109: October | H109: =H33+H52+H71+H90 ->  | J109: =J33+J52+J71+J90 ->  | L109: =L33+L52+L71+L90 ->  | N109: =N33+N52+N71+N90 -> 
B110: November | H110: =H34+H53+H72+H91 ->  | J110: =J34+J53+J72+J91 ->  | L110: =L34+L53+L72+L91 ->  | N110: =N34+N53+N72+N91 -> 
B111: December | H111: =H35+H54+H73+H92 ->  | J111: =J35+J54+J73+J92 ->  | L111: =L35+L54+L73+L92 ->  | N111: =N35+N54+N73+N92 -> 
B113: Total | D113: =SUM(D100:D111) ->  | E113: =IF(D113<>0,F113/D113,0) ->  | F113: =SUM(F100:F111) ->  | H113: =SUM(H100:H111) ->  | I113: =IF(H113<>0,J113/H113,0) ->  | J113: =SUM(J100:J111) ->  | L113: =SUM(L100:L111) ->  | M113: =IF(L113<>0,N113/L113,0) ->  | N113: =SUM(N100:N111) ->  | P113: =SUM(P100:P111) -> 
N115: Low Voltage Switchgear Credit (if applicable) | P115: ='5. UTRs and Sub-Transmission'!J75 -> 0
N117: Total including deduction for Low Voltage Switchgear Credit | P117: =P113+P115 -> 

Sheet 9. RTSR Rates to Forecast
G1: =ROUND(D1*F1, 2) -> 0 | H1: =G1/0 ->  | I1: =H1*total_current_wholesale_network ->  | J1: =IF(ISERROR(I1/F1), 0, I1/F1) -> 0
G2: =ROUND(D2*F2, 2) -> 0 | H2: =G2/0 ->  | I2: =H2*total_current_wholesale_network ->  | J2: =IF(ISERROR(I2/F2), 0, I2/F2) -> 0
G3: =ROUND(D3*F3, 2) -> 0 | H3: =G3/0 ->  | I3: =H3*Total_Current_Wholesale_Lineplus ->  | J3: =IF(ISERROR(I3/F3), 0, I3/F3) -> 0
G4: =ROUND(D4*F4, 2) -> 0 | H4: =G4/0 ->  | I4: =H4*Total_Current_Wholesale_Lineplus ->  | J4: =IF(ISERROR(I4/F4), 0, I4/F4) -> 0
G5: =ROUND(D5*F5, 2) -> 0 | H5: =G5/0 ->  | I5: =H5*Total_Current_Wholesale_Lineplus ->  | J5: =IF(ISERROR(I5/F5), 0, I5/F5) -> 0
A6: Residential | B6: RTSR - Connection | C6: kWh | D6: 0.0044 | G6: =ROUND(D6*E6, 2) -> 0 | H6: =G6/0 ->  | I6: =H6*Total_Current_Wholesale_Lineplus ->  | J6: =IF(ISERROR(I6/E6), 0, I6/E6) -> 0
A7: General Service Less Than 50 kW | B7: RTSR - Connection | C7: kWh | D7: 0.0041 | G7: =ROUND(D7*F7, 2) -> 0 | H7: =G7/0 ->  | I7: =H7*total_current_wholesale_network ->  | J7: =IF(ISERROR(I7/F7), 0, I7/F7) -> 0
A8: General Service 50 to 999 kW | B8: RTSR - Connection | C8: kW | D8: 2.4847 | G8: =ROUND(D8*F8, 2) -> 0 | H8: 0 | I8: =H8*forecast_wholesale_network ->  | J8: =IF(ISERROR(I8/F8), 0, I8/F8) -> 0
A9: General Service 1,000 to 4,999 kW | B9: RTSR - Connection | C9: kW | D9: 1.9499 | G9: =ROUND(D9*F9, 2) -> 0 | H9: 0 | I9: =H9*forecast_wholesale_network ->  | J9: =IF(ISERROR(I9/F9), 0, I9/F9) -> 0
A10: Large Use | B10: RTSR - Connection | C10: kW | D10: 1.9849 | G10: =ROUND(D10*F10, 2) -> 0 | H10: 0 | I10: =H10*forecast_wholesale_network ->  | J10: =IF(ISERROR(I10/F10), 0, I10/F10) -> 0
A11: Street Lighting | B11: RTSR - Connection | C11: kW | D11: 1.2486 | G11: =ROUND(D11*F11, 2) -> 0 | H11: 0 | I11: =H11*forecast_wholesale_network ->  | J11: =IF(ISERROR(I11/F11), 0, I11/F11) -> 0
A12: Unmetered Scattered Load | B12: RTSR - Connection | C12: kWh | D12: 0.0041 | G12: =IF(ISERROR(D12*E12), 0, ROUND(D12*E12, 2)) -> 0 | H12: 0 | I12: =H12*forecast_wholesale_network ->  | J12: =IF(ISERROR(I12/E12), 0, I12/E12) -> 0
A13: Embedded Distributor | B13: RTSR - Connection | C13: kW | D13: 1.9849 | G13: =ROUND(D13*F13, 2) -> 0 | H13: =G13/0 ->  | I13: =H13*total_current_wholesale_network ->  | J13: =IF(ISERROR(I13/F13), 0, I13/F13) -> 0
A14: Embedded Distributor | B14: RTSR - Connection | C14: kW | D14: 1.9849 | G14: =ROUND(D14*F14, 2) -> 0 | H14: =G14/0 ->  | I14: =H14*total_current_wholesale_network ->  | J14: =IF(ISERROR(I14/F14), 0, I14/F14) -> 0
E15: Loss Adjusted Billed kWh | F15: Billed kW | G15: =ROUND(D15*F15, 2) ->  | H15: =G15/0 ->  | I15: =H15*total_current_wholesale_network ->  | J15: =IF(ISERROR(I15/F15), 0, I15/F15) -> 0
G16: =ROUND(D16*F16, 2) -> 0 | H16: =G16/0 ->  | I16: =H16*Total_Current_Wholesale_Lineplus ->  | J16: =IF(ISERROR(I16/F16), 0, I16/F16) -> 0
A17: Residential | B17: RTSR - Network | C17: kWh | D17: 0.005939923871 | E17: 401740257.3 | G17: =ROUND(D17*E17, 2) -> 2386306.54 | H17: =G17/0 ->  | I17: =H17*Total_Current_Wholesale_Lineplus ->  | J17: =IF(ISERROR(I17/E17), 0, I17/E17) -> 0
A18: General Service Less Than 50 kW | B18: RTSR - Network | C18: kWh | D18: 0.0052 | E18: 157411270.3 | G18: =ROUND(D18*E18, 2) -> 818538.61 | H18: =G18/0 ->  | I18: =H18*Total_Current_Wholesale_Lineplus ->  | J18: =IF(ISERROR(I18/E18), 0, I18/E18) -> 0
A19: Residential | B19: RTSR - Connection | C19: kWh | D19: 0.0044 | F19: 1358720.2 | G19: =ROUND(D19*E19, 2) -> 0 | H19: =G19/0 ->  | I19: =H19*Total_Current_Wholesale_Lineplus ->  | J19: =IF(ISERROR(I19/E19), 0, I19/E19) -> 0
A20: General Service Less Than 50 kW | B20: RTSR - Connection | C20: kWh | D20: 0.0041 | F20: 473291.0208 | G20: =ROUND(D20*F20, 2) -> 1940.49 | H20: =G20/10207890.1 -> 0.0001900970701 | I20: =H20*total_current_wholesale_network ->  | J20: =IF(ISERROR(I20/F20), 0, I20/F20) -> 0
A21: General Service 50 to 999 kW | B21: RTSR - Connection | C21: kW | D21: 2.4847 | F21: 361276.3107 | G21: =ROUND(D21*F21, 2) -> 897663.25 | H21: 0 | I21: =H21*forecast_wholesale_network ->  | J21: =IF(ISERROR(I21/F21), 0, I21/F21) -> 0
A22: General Service 1,000 to 4,999 kW | B22: RTSR - Connection | C22: kW | D22: 1.9499 | F22: 9896.266398 | G22: =ROUND(D22*F22, 2) -> 19296.73 | H22: 0 | I22: =H22*forecast_wholesale_network ->  | J22: =IF(ISERROR(I22/F22), 0, I22/F22) -> 0
A23: Large Use | B23: RTSR - Connection | C23: kW | D23: 1.9849 | E23: 2123009.147 | G23: =ROUND(D23*F23, 2) -> 0 | H23: 0 | I23: =H23*forecast_wholesale_network ->  | J23: =IF(ISERROR(I23/F23), 0, I23/F23) -> 0
A24: Street Lighting | B24: RTSR - Connection | C24: kW | D24: 1.2486 | F24: 114656.8844 | G24: =ROUND(D24*F24, 2) -> 143160.59 | H24: 0.01402450346 | J24: =IF(ISERROR(I24/F24), 0, I24/F24) -> 0
A25: Unmetered Scattered Load | B25: RTSR - Connection | C25: kWh | D25: 0.0041 | F25: 24387.43564 | G25: =ROUND(D25*F25, 2) -> 99.99 | H25: 9.795364078e-06 | J25: =IF(ISERROR(I25/F25), 0, I25/F25) -> 0
A26: Embedded Distributor | B26: RTSR - Connection | C26: kW | D26: 1.9849
A27: Embedded Distributor | B27: RTSR - Connection | C27: kW | D27: 1.9849
E28: Loss Adjusted Billed kWh | F28: Billed kW | G28: =ROUND(D28*F28, 2) ->  | H28: 0 | I28: =H28*forecast_wholesale_lineplus ->  | J28: =IF(ISERROR(I28/F28), 0, I28/F28) -> 0
G29: =ROUND(D29*F29, 2) -> 0 | H29: 0 | I29: =H29*forecast_wholesale_lineplus ->  | J29: =IF(ISERROR(I29/F29), 0, I29/F29) -> 0
E30: 401740257.3 | G30: =ROUND(D30*F30, 2) -> 0 | H30: 0 | I30: =H30*forecast_wholesale_lineplus ->  | J30: =IF(ISERROR(I30/F30), 0, I30/F30) -> 0
E31: 157411270.3 | G31: =ROUND(D31*E31, 2) -> 0 | H31: =G31/7726072.82 -> 0 | I31: =H31*Total_Current_Wholesale_Lineplus ->  | J31: =IF(ISERROR(I31/E31), 0, I31/E31) -> 0
F32: 1358720.2 | G32: =ROUND(D32*F32, 2) -> 0 | H32: 0 | J32: =IF(ISERROR(I32/F32), 0, I32/F32) -> 0
F33: 473291.0208 | G33: =ROUND(D33*F33, 2) -> 0 | H33: 0 | J33: =IF(ISERROR(I33/F33), 0, I33/F33) -> 0
F34: 361276.3107 | G34: =ROUND(D34*F34, 2) -> 0 | H34: 0 | J34: =IF(ISERROR(I34/F34), 0, I34/F34) -> 0
F35: 9896.266398 | G35: =ROUND(D35*F35, 2) -> 0 | H35: 0 | J35: =IF(ISERROR(I35/F35), 0, I35/F35) -> 0
E36: 2123009.147 | G36: =ROUND(D36*E36, 2) -> 0 | H36: 0 | J36: =IF(ISERROR(I36/E36), 0, I36/E36) -> 0
F37: 114656.8844 | G37: =ROUND(D37*F37, 2) -> 0 | H37: 0 | J37: =IF(ISERROR(I37/F37), 0, I37/F37) -> 0
F38: 24387.43564 | G38: =ROUND(D38*F38, 2) -> 0 | H38: 0 | J38: =IF(ISERROR(I38/F38), 0, I38/F38) -> 0
E41: Loss Adjusted Billed kWh | F41: Billed kW | G41: Billed Amount | H41: Billed Amount % | I41: Current Wholesale Billing | J41: Proposed RTSR-Network
E43: 401740257.3 | G43: =IF(ISERROR(D43*E43), 0, ROUND(D43*E43, 2)) -> 0 | H43: =G43/9734784.59 -> 0 | I43: =H43*forecast_wholesale_network ->  | J43: =IF(ISERROR(I43/E43), 0, I43/E43) -> 0
E44: 157411270.3 | G44: =IF(ISERROR(D44*E44), 0, ROUND(D44*E44, 2)) -> 0 | H44: 0 | J44: =IF(ISERROR(I44/E44), 0, I44/E44) -> 0
F45: 1358720.2 | G45: =ROUND(D45*F45, 2) -> 0 | H45: 0 | J45: =IF(ISERROR(I45/F45), 0, I45/F45) -> 0
F46: 473291.0208 | G46: =ROUND(D46*F46, 2) -> 0 | H46: 0 | J46: =IF(ISERROR(I46/F46), 0, I46/F46) -> 0
F47: 361276.3107 | G47: =ROUND(D47*F47, 2) -> 0 | H47: 0 | J47: =IF(ISERROR(I47/F47), 0, I47/F47) -> 0
F48: 9896.266398 | G48: =ROUND(D48*F48, 2) -> 0 | H48: 0 | J48: =IF(ISERROR(I48/F48), 0, I48/F48) -> 0
E49: 2123009.147 | G49: =IF(ISERROR(D49*E49), 0, ROUND(D49*E49, 2)) -> 0 | H49: 0 | J49: =IF(ISERROR(I49/E49), 0, I49/E49) -> 0
F50: 114656.8844 | G50: =ROUND(D50*F50, 2) -> 0 | H50: 0 | J50: =IF(ISERROR(I50/F50), 0, I50/F50) -> 0
F51: 24387.43564 | G51: =ROUND(D51*F51, 2) -> 0 | H51: 0 | J51: =IF(ISERROR(I51/F51), 0, I51/F51) -> 0
E54: Loss Adjusted Billed kWh | F54: Billed kW | G54: Billed Amount | H54: Billed Amount % | I54: Current Wholesale Billing | J54: Proposed RTSR-Connection
E56: 401740257.3 | G56: =ROUND(D56*E56, 2) -> 0 | H56: =G56/7618458.67 -> 0 | I56: =H56*forecast_wholesale_lineplus ->  | J56: =IF(ISERROR(I56/E56), 0, I56/E56) -> 0
E57: 157411270.3 | G57: =ROUND(D57*E57, 2) -> 0 | H57: 0 | J57: =IF(ISERROR(I57/E57), 0, I57/E57) -> 0
F58: 1358720.2 | G58: =ROUND(D58*F58, 2) -> 0 | H58: 0 | J58: =IF(ISERROR(I58/F58), 0, I58/F58) -> 0
F59: 473291.0208 | G59: =ROUND(D59*F59, 2) -> 0 | H59: 0 | J59: =IF(ISERROR(I59/F59), 0, I59/F59) -> 0
F60: 361276.3107 | G60: =ROUND(D60*F60, 2) -> 0 | H60: 0 | J60: =IF(ISERROR(I60/F60), 0, I60/F60) -> 0
F61: 9896.266398 | G61: =ROUND(D61*F61, 2) -> 0 | H61: 0 | J61: =IF(ISERROR(I61/F61), 0, I61/F61) -> 0
E62: 2123009.147 | G62: =ROUND(D62*E62, 2) -> 0 | H62: 0 | J62: =IF(ISERROR(I62/E62), 0, I62/E62) -> 0
F63: 114656.8844 | G63: =ROUND(D63*F63, 2) -> 0 | H63: 0 | J63: =IF(ISERROR(I63/F63), 0, I63/F63) -> 0
F64: 24387.43564 | G64: =ROUND(D64*F64, 2) -> 0 | H64: 0 | J64: =IF(ISERROR(I64/F64), 0, I64/F64) -> 0

Sheet hidden1 (hidden)
A1: =IF('3. Rate Classes'!L17=1, '3. Rate Classes'!C17, "") -> Residential | B1: 1
A2: =IF('3. Rate Classes'!L18=1, '3. Rate Classes'!C18, "") -> General Service Less Than 50 kW | B2: 2
A3: =IF('3. Rate Classes'!L19=1, '3. Rate Classes'!C19, "") -> General Service 50 to 999 kW | B3: 3
A4: =IF('3. Rate Classes'!L20=1, '3. Rate Classes'!C20, "") -> General Service 1,000 to 4,999 kW | B4: 4
A5: =IF('3. Rate Classes'!L21=1, '3. Rate Classes'!C21, "") -> Large Use | B5: 5
A6: =IF('3. Rate Classes'!L22=1, '3. Rate Classes'!C22, "") -> Street Lighting | B6: 6
A7: =IF('3. Rate Classes'!L23=1, '3. Rate Classes'!C23, "") -> Unmetered Scattered Load | B7: 7
A8: =IF('3. Rate Classes'!L24=1, '3. Rate Classes'!C24, "") -> Embedded Distributor | B8: 8
A9: =IF('3. Rate Classes'!L25=1, '3. Rate Classes'!C25, "") -> Embedded Distributor | B9: 9
A10: =IF('3. Rate Classes'!L26=1, '3. Rate Classes'!C26, "") ->  | B10: 10
A11: =IF('3. Rate Classes'!L27=1, '3. Rate Classes'!C27, "") ->  | B11: 11
A12: =IF('3. Rate Classes'!L28=1, '3. Rate Classes'!C28, "") ->  | B12: 12
A13: =IF('3. Rate Classes'!L29=1, '3. Rate Classes'!C29, "") ->  | B13: 13
A14: =IF('3. Rate Classes'!L30=1, '3. Rate Classes'!C30, "") ->  | B14: 14
A15: =IF('3. Rate Classes'!L31=1, '3. Rate Classes'!C31, "") ->  | B15: 15
A16: =IF('3. Rate Classes'!L32=1, '3. Rate Classes'!C32, "") ->  | B16: 16
A17: =IF('3. Rate Classes'!L33=1, '3. Rate Classes'!C33, "") ->  | B17: 17
A18: =IF('3. Rate Classes'!L34=1, '3. Rate Classes'!C34, "") ->  | B18: 18
A19: =IF('3. Rate Classes'!L35=1, '3. Rate Classes'!C35, "") ->  | B19: 19
A20: =IF('3. Rate Classes'!L36=1, '3. Rate Classes'!C36, "") ->  | B20: 20
A21: =IF('3. Rate Classes'!L37=1, '3. Rate Classes'!C37, "") ->  | B21: 21
A22: =IF('3. Rate Classes'!L38=1, '3. Rate Classes'!C38, "") ->  | B22: 22
